bitfinex-derivatives/quotes_ETHF0:USTF0_20260207
["timestamp","ask_amount","ask_price","bid_price","bid_amount"]
[1770475755741,3.38057072,2015.4,2014.1,2.75978719]
[1770475755947,0.00462409,2015.4,2014.5,2.75978719]
[1770475756147,0.00462409,2015.4,2014.3,0.24848]
[1770475757846,0.61029907,2015.4,2014.3,0.24848]
[1770475758345,0.61029907,2015.4,2014.0,0.00545483]
[1770475758548,0.61029907,2015.4,2014.1,2.75978719]
[1770475758746,0.00462409,2015.4,2014.5,3.00824719]
[1770475758954,0.00462409,2015.4,2014.5,0.24846]
[1770475759551,0.61029907,2015.4,2014.5,0.24846]
[1770475759751,0.61029907,2015.4,2014.0,0.00545483]
[1770475760047,0.60875879,2015.9,2014.6,0.24844]
[1770475760452,0.60875879,2015.9,2014.6,22.95144]
[1770475761041,0.61360526,2015.9,2014.6,22.95144]
[1770475761853,0.60964381,2015.8,2014.3,22.701]
[1770475763246,0.60964381,2015.8,2014.5,2.75978719]
[1770475763452,0.60964381,2015.8,2014.7,0.24843]
[1770475765148,0.60964381,2015.8,2014.9,2.75978719]
[1770475765348,0.00484647,2015.9,2014.7,0.24843]
[1770475766048,0.61192127,2015.9,2014.7,0.24843]
[1770475766254,0.61192127,2015.9,2014.8,22.645]
[1770475766755,0.61192127,2015.9,2014.9,22.631]
[1770475767952,0.00484647,2015.9,2014.9,22.631]
[1770475768151,0.00484647,2015.9,2014.9,22.87941]
[1770475768346,0.00484647,2015.9,2015.1,0.24838]
[1770475768545,0.608452,2016.2,2015.1,0.24838]
[1770475769249,0.608452,2016.2,2015.2,0.24838]
[1770475769450,0.57769282,2016.4,2016.1,5.8121615]
[1770475769650,0.0014696,2016.2,2015.5,0.54070253]
[1770475770360,0.0014696,2016.2,2015.2,0.24838]
[1770475770361,0.57916242,2016.2,2015.3,0.54070253]
[1770475770656,0.0014696,2016.2,2015.3,0.54697301]
[1770475771651,0.57916242,2016.2,2015.3,23.10297301]
[1770475771864,0.0014696,2016.2,2015.4,0.54070253]
[1770475772355,0.57769282,2016.0,2014.4,0.54070253]
[1770475772556,3.35724833,2015.4,2014.4,0.54070253]
[1770475772753,0.57769282,2015.2,2014.4,0.54070253]
[1770475772955,8.41510456,2015.2,2014.4,0.54070253]
[1770475773161,0.57769282,2015.0,2014.0,0.54070253]
[1770475773361,5.05785623,2014.9,2014.0,0.54070253]
[1770475773664,5.05785623,2014.8,2014.1,22.56]
[1770475773854,5.05785623,2014.7,2014.1,22.56]
[1770475774055,5.05785623,2014.6,2014.1,23.10070253]
[1770475774256,2.77955551,2014.8,2014.1,23.10070253]
[1770475774458,5.07391614,2014.7,2014.1,23.10070253]
[1770475774759,5.07391614,2014.6,2014.2,0.54070253]
[1770475774960,0.57769282,2014.2,2013.2,0.54070253]
[1770475775158,5.07391614,2014.1,2013.2,0.54692426]
[1770475775356,5.07391614,2014.0,2013.2,0.54692426]
[1770475775552,3.35724833,2014.2,2013.2,0.54692426]
[1770475775762,5.07229508,2014.1,2013.2,0.54692426]
[1770475776060,2.77955551,2014.3,2013.3,0.54677179]
[1770475776264,7.85341823,2014.2,2013.3,0.54677179]
[1770475776560,3.37415607,2013.8,2013.0,0.54677179]
[1770475776754,7.85341823,2013.7,2013.0,0.54677179]
[1770475776956,5.07386272,2013.6,2013.0,0.54677179]
[1770475777157,0.59460056,2013.7,2012.7,0.54677179]
[1770475777352,5.48245375,2013.6,2012.7,0.54677179]
[1770475777561,4.88774928,2013.5,2012.7,0.55274554]
[1770475777761,0.59460056,2013.5,2012.7,0.55274554]
[1770475777964,4.88752027,2013.4,2012.7,0.55274554]
[1770475778267,0.59460056,2013.2,2012.1,0.54677179]
[1770475778462,2.78448899,2013.4,2012.3,0.54677179]
[1770475778659,5.47880921,2013.3,2012.3,0.54677179]
[1770475778859,4.88420865,2013.2,2012.3,0.54677179]
[1770475779259,4.88420865,2013.2,2012.3,0.55033242]
[1770475779454,5.47880921,2013.2,2012.3,0.55033242]
[1770475779660,4.87315297,2013.1,2012.3,0.55033242]
[1770475779959,4.87210904,2013.0,2012.3,0.55033242]
[1770475780160,4.87210904,2012.9,2012.3,0.55033242]
[1770475780356,2.77955551,2013.1,2011.6,0.52844685]
[1770475780357,2.77955551,2013.1,2012.0,0.59523394]
[1770475780558,7.64385602,2013.0,2012.0,0.59523394]
[1770475780758,2.77955551,2013.3,2012.1,0.59523394]
[1770475780963,0.00493348,2013.4,2012.1,0.59523394]
[1770475781266,0.59953404,2013.4,2012.3,0.54677179]
[1770475781467,0.00493348,2013.4,2012.3,0.55295205]
[1770475781661,0.59201431,2014.4,2012.8,0.54677179]
[1770475782662,0.59842214,2014.4,2012.8,0.54677179]
[1770475783257,6.23458269,2014.4,2012.8,0.54677179]
[1770475783461,0.59201431,2014.3,2012.8,0.54677179]
[1770475783662,0.59460056,2014.2,2012.8,0.54677179]
[1770475783962,0.59460056,2014.2,2013.3,5.8121615]
[1770475784665,0.59460056,2014.2,2013.0,0.54677179]
[1770475785966,0.00640783,2014.4,2013.0,0.54677179]
[1770475786160,0.60100839,2014.4,2013.1,0.54677179]
[1770475787561,0.59460056,2014.3,2013.1,0.54677179]
[1770475790366,0.59460056,2014.3,2013.2,0.54677179]
[1770475791675,0.59460056,2014.3,2013.3,0.54677179]
[1770475795768,0.59460056,2014.3,2013.9,13.07754515]
[1770475796078,0.59148413,2014.4,2013.9,0.00602695]
[1770475796279,0.59148413,2014.4,2013.3,0.54677179]
[1770475796573,0.57904935,2014.2,2013.3,0.54677179]
[1770475797172,0.57904935,2014.2,2013.3,0.55261079]
[1770475797373,0.58545718,2014.4,2013.3,0.55261079]
[1770475798067,4.62397683,2014.3,2013.3,0.55261079]
[1770475798272,0.58545718,2014.4,2013.3,0.55261079]
[1770475798575,4.62398269,2014.3,2013.3,0.55261079]
[1770475798776,0.57775864,2014.8,2014.3,5.8121615]
[1770475798981,4.62523403,2014.7,2014.3,0.54677179]
[1770475799176,0.57775864,2014.8,2014.3,0.54677179]
[1770475799476,4.62994353,2014.7,2014.3,0.54677179]
[1770475799672,0.57775864,2014.8,2014.3,0.54677179]
[1770475799879,4.62730085,2014.7,2014.3,0.54677179]
[1770475800080,0.00380129,2014.8,2014.3,0.54677179]
[1770475800381,0.58507781,2015.7,2014.5,0.54677179]
[1770475800575,4.6347651,2015.6,2014.5,0.54677179]
[1770475800776,6.22123836,2016.0,2014.6,0.54677179]
[1770475800976,4.61225982,2015.9,2014.6,0.54677179]
[1770475801171,4.61225982,2015.8,2014.7,0.54677179]
[1770475801382,4.61225982,2015.7,2014.7,0.54677179]
[1770475801583,0.58971368,2015.8,2014.7,0.54677179]
[1770475801889,0.59460056,2015.6,2014.7,0.54677179]
[1770475802177,5.21199733,2015.5,2014.7,0.54677179]
[1770475802376,5.21199733,2015.4,2014.7,0.54677179]
[1770475802581,0.59460056,2015.7,2014.7,0.54677179]
[1770475802884,4.6026664,2015.6,2014.7,0.54677179]
[1770475803181,4.6026664,2015.5,2014.7,0.54677179]
[1770475803375,0.59460056,2015.7,2014.7,0.54677179]
[1770475803581,0.00463587,2015.8,2014.8,0.54677179]
[1770475803782,0.00463587,2015.8,2014.8,0.55245649]
[1770475804781,0.00463587,2015.8,2014.9,0.54677179]
[1770475805284,0.54424477,2016.7,2015.5,0.54677179]
[1770475806080,0.54813473,2016.7,2015.5,0.54677179]
[1770475806582,8.65992186,2017.6,2016.3,2.06877864]
[1770475806779,0.59463902,2017.7,2016.5,0.24821]
[1770475806984,0.59463902,2018.9,2016.8,2.31695864]
[1770475807177,0.59463902,2018.7,2016.9,0.24816]
[1770475807379,0.59463902,2018.7,2016.9,5.42328608]
[1770475807686,0.59922431,2018.7,2016.9,5.42818652]
[1770475807875,0.59922431,2018.7,2016.9,0.25306044]
[1770475808082,0.59922431,2018.7,2016.9,0.00490044]
[1770475808888,0.59922431,2018.7,2017.1,0.24814]
[1770475809182,0.59922431,2018.7,2017.5,0.24809]
[1770475809585,0.59922431,2018.7,2016.9,0.00490044]
[1770475809775,0.59922431,2018.7,2017.2,0.00511633]
[1770475810376,0.59922431,2018.7,2017.6,0.24808]
[1770475810679,0.00458529,2018.7,2017.8,0.00425317]
[1770475810880,0.59213032,2018.9,2017.8,0.00425317]
[1770475810881,0.59213032,2018.9,2017.9,0.00425317]
[1770475811282,1.30871644,2020.7,2016.9,0.00490044]
[1770475811283,0.55383094,2020.3,2018.5,0.55623723]
[1770475811485,0.55383094,2020.3,2018.5,0.80419723]
[1770475811683,0.55383094,2020.3,2018.8,0.55623723]
[1770475811988,0.55834783,2020.3,2018.8,0.56036623]
[1770475812385,0.55834783,2020.3,2018.8,0.004129]
[1770475812986,0.55383094,2020.0,2017.8,0.55623723]
[1770475813292,0.55383094,2019.9,2017.8,0.55623723]
[1770475813682,0.55383094,2019.9,2017.5,0.55623723]
[1770475813683,0.55383094,2019.5,2017.5,0.55623723]
[1770475813885,0.55383094,2019.5,2017.7,0.55623723]
[1770475814085,0.55383094,2019.5,2017.5,0.00554469]
[1770475814285,0.55383094,2019.5,2017.5,0.56178192]
[1770475816492,0.55383094,2019.5,2018.0,0.55623723]
[1770475816891,0.55383094,2019.5,2018.1,0.55623723]
[1770475817092,0.55383094,2019.5,2018.2,0.55623723]
[1770475817900,0.55383094,2019.5,2017.9,0.55623723]
[1770475819796,0.55383094,2019.5,2018.0,0.55623723]
[1770475820791,0.55383094,2019.5,2017.6,0.55623723]
[1770475821989,0.55383094,2019.5,2017.7,0.55623723]
[1770475822192,0.55383094,2019.5,2017.8,0.55623723]
[1770475822992,5.49083094,2019.5,2017.8,0.55623723]
[1770475823195,0.55383094,2019.3,2017.5,0.56178192]
[1770475823992,0.55383094,2019.3,2017.7,0.55623723]
[1770475825092,0.55383094,2019.3,2018.0,0.55623723]
[1770475825691,0.55383094,2019.3,2018.2,0.55623723]
[1770475826099,0.55383094,2019.3,2018.2,0.80423723]
[1770475826293,0.55383094,2019.3,2018.3,0.55623723]
[1770475826691,4.937,2020.2,2018.3,0.55623723]
[1770475826692,0.55383094,2019.6,2018.3,0.55623723]
[1770475826891,0.55383094,2019.6,2018.4,0.55623723]
[1770475827097,0.55383094,2019.6,2018.6,0.55623723]
[1770475827488,0.55383094,2019.9,2018.7,0.55623723]
[1770475827693,0.55383094,2019.9,2018.8,0.55623723]
[1770475827894,0.55383094,2020.2,2018.9,0.55623723]
[1770475828793,0.55383094,2020.2,2019.6,5.8121615]
[1770475829001,0.55383094,2020.2,2019.6,0.00582922]
[1770475829395,0.55383094,2020.2,2019.0,0.55623723]
[1770475830298,0.55383094,2020.2,2019.0,0.56027963]
[1770475830895,0.55383094,2020.2,2019.0,0.0040424]
[1770475831095,0.55383094,2020.2,2019.0,0.56027963]
[1770475831696,0.55383094,2020.2,2019.0,0.0040424]
[1770475832112,0.55383094,2020.2,2019.0,0.56027963]
[1770475834405,0.55383094,2020.2,2019.1,0.55623723]
[1770475835008,0.00451689,2020.3,2019.2,0.55623723]
[1770475835703,0.55383094,2021.2,2019.6,0.55623723]
[1770475835907,0.55383094,2021.2,2019.8,0.55623723]
[1770475836704,0.55914089,2021.2,2019.9,0.54244853]
[1770475837800,0.55914089,2021.2,2019.4,0.54244853]
[1770475838102,0.55115505,2021.1,2019.4,0.54244853]
[1770475838501,0.55115505,2020.8,2019.1,0.54244853]
[1770475838904,0.55115505,2020.7,2019.1,0.54244853]
[1770475839110,0.55115505,2020.6,2019.1,0.54244853]
[1770475839304,0.55115505,2020.6,2019.3,0.54244853]
[1770475839508,0.55115505,2020.6,2019.7,13.07754515]
[1770475839705,0.55115505,2020.6,2019.3,0.54244853]
[1770475840013,0.55115505,2020.6,2019.1,0.54244853]
[1770475840804,43.08232949,2020.6,2019.1,0.54244853]
[1770475841104,0.55115505,2020.5,2019.1,0.54244853]
[1770475841503,0.55115505,2020.5,2019.3,0.54244853]
[1770475841706,0.55115505,2020.4,2019.3,0.54244853]
[1770475841900,0.55115505,2020.4,2019.4,0.54244853]
[1770475842105,0.55115505,2020.4,2019.1,0.54244853]
[1770475843300,0.55115505,2020.4,2019.0,0.0040424]
[1770475843512,0.55115505,2020.0,2019.0,0.54649093]
[1770475843911,0.55115505,2020.0,2019.2,5.8121615]
[1770475845312,0.55115505,2019.9,2019.2,5.8121615]
[1770475845705,0.55115505,2019.9,2019.0,0.54649093]
[1770475846406,0.55115505,2019.9,2019.0,0.0040424]
[1770475846808,0.55115505,2019.9,2018.8,0.54244853]
[1770475846809,0.55115505,2019.8,2018.8,0.54244853]
[1770475847809,0.55115505,2019.8,2018.8,0.54853147]
[1770475850111,2.88411138,2019.9,2019.0,0.54244853]
[1770475850413,0.55115505,2020.3,2019.3,0.54244853]
[1770475850715,0.55115505,2020.5,2019.3,0.54244853]
[1770475851813,0.55115505,2020.2,2018.8,0.00608294]
[1770475852010,0.55115505,2020.2,2018.9,0.54244853]
[1770475853111,0.55115505,2020.1,2018.9,0.54244853]
[1770475854215,0.55115505,2020.0,2018.9,0.54244853]
[1770475854713,0.55115505,2020.1,2019.6,13.07754515]
[1770475855310,3.43526643,2020.1,2019.6,13.07754515]
[1770475855707,0.55115505,2020.1,2019.6,0.54244853]
[1770475856117,0.55115505,2020.1,2019.0,0.2479]
[1770475856320,0.55115505,2020.0,2019.1,0.54244853]
[1770475857912,0.55115505,2019.9,2018.9,0.54244853]
[1770475858413,0.55115505,2019.7,2018.9,0.54244853]
[1770475858720,0.55672621,2019.7,2018.9,0.54244853]
[1770475858919,0.55672621,2019.7,2019.2,5.8121615]
[1770475859321,0.55672621,2019.7,2018.8,0.00608294]
[1770475860021,0.55672621,2019.7,2018.8,0.54853147]
[1770475860318,0.55115505,2019.6,2018.8,0.54853147]
[1770475860713,0.55115505,2019.6,2018.8,0.00608294]
[1770475860917,0.55115505,2019.6,2018.8,0.54853147]
[1770475861715,0.55115505,2019.6,2018.8,0.00608294]
[1770475862525,3.43526643,2019.6,2018.8,0.00608294]
[1770475862718,44.5993544,2019.7,2018.2,0.54244853]
[1770475862719,0.55115505,2019.2,2018.2,0.54244853]
[1770475863022,44.59378324,2019.4,2017.8,4.94549098]
[1770475863023,2.88411138,2019.4,2018.6,0.54244853]
[1770475863419,0.55115505,2019.3,2018.7,0.54853147]
[1770475863619,0.55115505,2019.3,2018.7,0.00431436]
[1770475863822,0.55115505,2019.3,2018.7,0.55284583]
[1770475864022,3.43526643,2019.4,2018.7,0.55284583]
[1770475864218,0.55115505,2019.3,2018.5,0.54244853]
[1770475864411,0.55115505,2019.2,2018.2,0.00608294]
[1770475864617,0.55115505,2019.2,2018.2,0.54853147]
[1770475865021,0.55115505,2019.0,2018.2,0.00608294]
[1770475865224,0.55115505,2019.0,2018.2,0.55302477]
[1770475865924,0.55115505,2019.2,2018.2,0.55302477]
[1770475866520,0.5841071,2018.7,2018.2,0.00362552]
[1770475866923,0.5841071,2018.6,2017.6,0.55598646]
[1770475867124,0.5841071,2018.6,2017.2,2.3107388]
[1770475867125,0.5841071,2018.6,2017.3,0.55598646]
[1770475867915,0.5841071,2018.6,2017.3,0.56185016]
[1770475868120,0.5841071,2018.6,2017.4,0.55598646]
[1770475869725,0.5841071,2018.4,2017.6,13.07754515]
[1770475870116,0.5841071,2018.4,2017.4,0.55598646]
[1770475870326,0.57001836,2018.6,2017.4,0.55598646]
[1770475872930,44.59378324,2019.1,2017.7,0.57605907]
[1770475872931,0.54259758,2018.8,2017.7,0.57605907]
[1770475873327,0.54259758,2019.1,2017.7,0.57605907]
[1770475873531,0.54259758,2019.1,2017.8,0.57605907]
[1770475873828,0.54259758,2019.1,2018.0,0.57605907]
[1770475874131,0.54259758,2019.1,2018.7,5.8121615]
[1770475875027,0.54259758,2019.1,2018.5,0.57605907]
[1770475875333,0.54259758,2019.4,2018.5,0.57605907]
[1770475876137,0.54259758,2019.6,2018.6,0.57605907]
[1770475880343,0.54259758,2019.6,2018.4,0.57605907]
[1770475880834,0.54259758,2019.4,2018.3,20.691]
[1770475881543,0.54259758,2019.1,2017.7,0.57605907]
[1770475881749,0.54259758,2018.8,2017.7,0.57605907]
[1770475882647,0.54259758,2018.6,2017.3,0.58192277]
[1770475882842,0.54259758,2018.3,2017.3,0.58192277]
[1770475883842,0.54259758,2018.3,2017.3,0.0058637]
[1770475884039,0.54259758,2017.8,2016.5,0.57605907]
[1770475884245,0.54259758,2017.5,2016.0,0.57605907]
[1770475884445,0.54259758,2017.3,2016.6,13.07754515]
[1770475884651,0.54259758,2017.9,2016.9,0.57605907]
[1770475885143,0.54770527,2017.9,2016.9,0.57966539]
[1770475885944,0.00510769,2017.9,2016.9,0.57966539]
[1770475886544,0.54770527,2017.9,2016.9,0.57966539]
[1770475888641,0.54259758,2016.9,2015.9,2.88288218]
[1770475888841,2.0626088,2016.7,2015.5,0.59433369]
[1770475889047,2.0626088,2016.6,2015.5,0.59433369]
[1770475889348,2.0626088,2016.3,2015.3,0.59433369]
[1770475889745,0.00427139,2016.3,2015.3,0.60043093]
[1770475889946,0.00427139,2016.3,2015.3,0.00609724]
[1770475890144,0.00427139,2016.3,2015.3,0.60404172]
[1770475894144,0.00427139,2016.3,2015.5,0.59824329]
[1770475895960,0.01427139,2016.3,2015.5,0.59824329]
[1770475897659,0.01427139,2016.3,2015.3,0.00609724]
[1770475897660,0.01427139,2016.3,2015.7,0.60250135]
[1770475897862,2.0626088,2017.0,2015.7,0.60250135]
[1770475898755,2.06706112,2017.0,2015.7,0.60250135]
[1770475900256,2.06706112,2017.0,2016.2,13.07754515]
[1770475900460,0.00445232,2017.0,2016.2,0.60634645]
[1770475900661,2.0626088,2017.8,2016.3,0.60634645]
[1770475901167,2.0626088,2017.5,2016.3,0.60634645]
[1770475901355,2.0626088,2017.5,2016.1,0.24826]
[1770475901356,2.0626088,2017.3,2015.9,0.60634645]
[1770475901551,2.06662104,2017.3,2015.9,0.60634645]
[1770475902358,2.06662104,2017.3,2016.0,0.60444169]
[1770475902558,0.00401224,2017.3,2016.0,0.60444169]
[1770475902862,0.00401224,2017.3,2016.3,0.60444169]
[1770475904260,2.0626088,2017.9,2017.1,5.07538964]
[1770475904461,2.0626088,2017.9,2017.1,0.60501911]
[1770475905256,0.00445792,2017.9,2017.2,0.60501911]
[1770475905563,2.06519613,2019.0,2017.2,0.60501911]
[1770475906361,2.06958605,2019.0,2017.2,0.60501911]
[1770475906560,0.00438992,2019.0,2017.3,0.85362398]
[1770475906766,0.00438992,2019.0,2017.4,0.60551398]
[1770475907161,0.00438992,2019.0,2017.5,0.60551398]
[1770475908668,0.00438992,2019.0,2017.8,0.60442245]
[1770475909164,4.94930751,2019.9,2018.0,0.60442245]
[1770475909366,2.06519613,2019.5,2018.0,0.60442245]
[1770475909665,2.06519613,2019.1,2018.0,0.60442245]
[1770475909870,2.06519613,2019.5,2018.0,0.60442245]
[1770475909871,4.13039226,2019.5,2018.0,0.60442245]
[1770475910167,0.00457647,2019.5,2018.0,0.60442245]
[1770475914374,2.06519613,2019.2,2018.0,0.60442245]
[1770475916067,2.06519613,2019.2,2017.8,0.60469634]
[1770475917370,4.961,2019.1,2017.8,0.60469634]
[1770475918274,7.84511138,2019.1,2017.8,0.60469634]
[1770475918465,5.2089,2019.1,2017.8,0.60469634]
[1770475918876,0.01,2019.1,2018.4,0.60410549]
[1770475921971,0.00457647,2019.5,2018.4,0.60410549]
[1770475922769,0.00457647,2019.5,2018.4,0.85208549]
[1770475922966,0.24777,2020.2,2018.5,0.59988752]
[1770475923171,2.06519613,2020.3,2018.6,0.59988752]
[1770475923372,3.13181138,2020.7,2018.7,0.59988752]
[1770475923576,2.06519613,2020.5,2018.7,0.59988752]
[1770475923965,2.06936877,2020.5,2018.7,0.60554342]
[1770475924775,2.06519613,2020.1,2018.7,0.60554342]
[1770475924973,4.961,2020.0,2018.7,0.60554342]
[1770475925174,2.06519613,2020.1,2018.7,0.60554342]
[1770475925976,5.20879,2020.0,2018.7,0.60554342]
[1770475926174,2.88411138,2020.3,2018.7,0.60554342]
[1770475926377,4.95348015,2020.5,2018.7,0.60554342]
[1770475926572,2.06936877,2020.5,2018.7,0.60554342]
[1770475927975,4.93871715,2020.5,2018.7,0.60554342]
[1770475928178,2.06519613,2020.1,2018.7,0.60554342]
[1770475928574,2.06519613,2019.7,2018.7,0.0056559]
[1770475928775,2.06519613,2019.7,2018.7,0.6046559]
[1770475929778,2.86934838,2019.9,2018.7,0.60298517]
[1770475930081,2.86934838,2020.0,2018.7,0.60298517]
[1770475930986,2.86934838,2019.9,2018.7,0.60298517]
[1770475931984,45.40052282,2020.0,2018.7,0.60298517]
[1770475932282,45.40052282,2019.9,2018.7,0.60298517]
[1770475932478,7.02619613,2019.7,2018.7,0.0056559]
[1770475932683,7.83034838,2019.6,2018.7,0.0056559]
[1770475932980,2.86934838,2019.9,2018.8,0.60284675]
[1770475933186,4.93454451,2020.1,2018.8,0.60284675]
[1770475933483,2.86934838,2020.0,2018.8,0.60284675]
[1770475933880,2.86934838,2020.0,2019.2,4.47037053]
[1770475934483,2.86934838,2019.9,2019.2,4.47037053]
[1770475934982,2.86934838,2020.0,2019.3,0.60296398]
[1770475935484,2.86934838,2019.9,2018.8,0.60296398]
[1770475935784,2.87195048,2019.9,2018.8,0.60296398]
[1770475937886,0.00250899,2019.8,2018.8,0.60296398]
[1770475938279,2.86934838,2019.9,2018.8,0.60296398]
[1770475938488,2.86934838,2020.2,2019.0,0.59319815]
[1770475938782,2.86934838,2020.3,2019.1,0.59319815]
[1770475938982,0.00417264,2020.5,2019.5,0.59319815]
[1770475941991,2.87352102,2020.5,2019.5,0.59319815]
[1770475942190,2.90129101,2020.2,2019.5,0.56149022]
[1770475942390,0.03194263,2020.1,2019.5,0.56149022]
[1770475943092,0.03194263,2019.9,2019.0,0.58681032]
[1770475943986,2.86934838,2020.0,2019.0,0.58681032]
[1770475944188,0.03345163,2020.3,2019.0,0.58681032]
[1770475944392,2.86934838,2020.4,2019.0,0.58681032]
[1770475944585,45.40469546,2020.5,2020.0,13.66435547]
[1770475944791,2.90697265,2020.5,2019.8,0.58681032]
[1770475944986,0.03345163,2020.4,2019.2,0.58681032]
[1770475945187,2.87352102,2020.5,2019.2,0.58681032]
[1770475945394,0.00417264,2020.5,2019.5,0.58681032]
[1770475945701,1.2760215,2020.8,2019.6,0.58681032]
[1770475946501,0.0338206,2020.7,2019.6,0.58681032]
[1770475946897,1.28133403,2020.8,2019.6,0.58681032]
[1770475947399,0.0338206,2020.7,2019.6,0.58681032]
[1770475947997,0.03383137,2020.6,2019.6,0.58681032]
[1770475948196,0.03383137,2020.4,2019.6,0.58681032]
[1770475948599,0.03383137,2020.3,2019.6,0.58681032]
[1770475948799,0.03383137,2020.2,2019.6,4.47037053]
[1770475949096,2.86934838,2020.3,2019.2,0.58681032]
[1770475949397,2.86934838,2020.5,2019.3,0.24787]
[1770475949601,2.86934838,2020.6,2019.4,0.58681032]
[1770475950005,2.86934838,2020.7,2019.4,0.58681032]
[1770475950206,43.81250847,2020.8,2019.6,0.58681032]
[1770475950207,4.15068241,2020.8,2019.6,0.58681032]
[1770475950499,1.28133403,2020.8,2019.6,0.58681032]
[1770475950698,1.28133403,2020.8,2019.8,0.58681032]
[1770475951692,1.28133403,2020.8,2019.8,19.975]
[1770475951898,2.86934838,2021.5,2020.3,0.58681032]
[1770475952202,2.91816324,2021.6,2020.3,0.58681032]
[1770475952598,0.04881486,2021.6,2020.3,0.58681032]
[1770475952800,0.0552539,2021.6,2020.3,0.59203043]
[1770475959208,0.0552539,2021.6,2020.4,0.53620759]
[1770475960504,0.0552539,2021.6,2021.2,13.07754515]
[1770475960705,3.4068159,2022.0,2021.3,0.53620759]
[1770475960906,5.67515072,2022.2,2021.3,0.53620759]
[1770475960907,0.53746752,2022.2,2021.3,0.53620759]
[1770475961107,0.53746752,2022.4,2021.3,0.53620759]
[1770475961305,0.53746752,2022.6,2021.4,0.53620759]
[1770475961811,0.54160186,2022.6,2021.4,0.53620759]
[1770475962610,0.00413434,2022.6,2021.4,0.53620759]
[1770475962807,0.53746752,2023.0,2021.5,0.53620759]
[1770475963205,3.48607712,2023.2,2021.7,0.53620759]
[1770475963399,0.61672874,2023.2,2021.7,0.53620759]
[1770475963912,0.61672874,2023.2,2022.6,4.47037053]
[1770475964209,0.62168014,2023.2,2021.4,0.59448401]
[1770475964412,2.31260613,2023.1,2021.4,0.59448401]
[1770475964614,2.06519613,2022.7,2021.4,0.59448401]
[1770475964911,2.86934838,2022.6,2021.4,0.59975827]
[1770475965312,2.86934838,2022.5,2021.4,0.00527426]
[1770475966212,2.86934838,2022.5,2021.4,0.6027614]
[1770475967308,2.06519613,2021.6,2020.1,0.59748714]
[1770475967514,2.06087773,2020.7,2019.7,0.59748714]
[1770475967811,0.00426626,2020.9,2019.7,0.59748714]
[1770475968209,0.00426626,2020.9,2019.7,0.60365069]
[1770475968410,0.00426626,2020.8,2019.7,0.60365069]
[1770475968606,0.00426626,2020.6,2019.7,0.60365069]
[1770475970304,0.01705702,2020.3,2019.4,0.58595551]
[1770475970607,2.07793475,2020.1,2019.4,0.58381208]
[1770475970811,0.01920045,2020.0,2018.6,0.58488379]
[1770475971202,2.08007818,2019.8,2018.6,0.58488379]
[1770475971412,2.08007818,2019.6,2018.6,0.58488379]
[1770475971607,2.08007818,2019.6,2018.6,0.59040963]
[1770475972115,0.01921883,2019.2,2018.6,0.00552584]
[1770475972315,0.02332646,2019.2,2018.6,0.00552584]
[1770475973011,0.00410763,2019.2,2018.6,0.59040044]
[1770475973211,0.02332646,2019.2,2018.6,0.00552584]
[1770475974515,0.02332646,2019.2,2017.8,0.58731528]
[1770475974704,0.02332646,2019.2,2018.2,0.58731528]
[1770475975217,0.00410763,2019.2,2018.2,0.58731528]
[1770475975616,0.00410763,2019.2,2018.2,0.59120288]
[1770475978508,2.06087773,2019.6,2018.4,0.59344378]
[1770475978811,0.0061881,2019.3,2018.4,0.59344378]
[1770475979409,0.01123698,2019.3,2018.4,0.59344378]
[1770475979608,2.06087773,2019.2,2018.4,0.59344378]
[1770475979805,2.06087773,2019.2,2018.2,0.60306251]
[1770475980219,2.06087773,2018.9,2018.2,0.0038876]
[1770475980917,2.06087773,2019.2,2018.2,0.60306251]
[1770475981210,0.00504888,2019.3,2018.2,0.60306251]
[1770475986312,2.75684212,2019.3,2018.2,0.60306251]
[1770475986918,0.00504888,2019.3,2018.2,0.60306251]
[1770475989016,7.71279324,2019.1,2018.2,0.0038876]
[1770475989813,7.71279324,2019.1,2018.4,13.06320769]
[1770475990217,7.71279324,2019.1,2018.2,0.0038876]
[1770475990724,7.96069324,2019.1,2018.2,0.0038876]
[1770475991025,0.24791,2019.0,2018.2,0.0038876]
[1770475991712,2.75179324,2018.4,2016.8,0.60171026]
[1770475991917,4.961,2018.8,2017.0,0.60171026]
[1770475992314,4.961,2018.8,2017.1,0.60171026]
[1770475992721,0.24795,2018.7,2017.1,0.60605954]
[1770475993024,0.24796,2018.6,2017.1,0.60605954]
[1770475993225,2.85873628,2019.1,2017.1,0.60605954]
[1770475993426,0.2479,2019.1,2017.1,0.60605954]
[1770475993621,0.24791,2019.0,2017.1,0.60605954]
[1770475993827,2.75179324,2018.8,2017.1,0.60605954]
[1770475994035,2.75179324,2018.8,2018.0,3.82975864]
[1770475994219,4.961,2018.7,2018.0,3.82975864]
[1770475994422,4.961,2018.7,2017.6,0.60056993]
[1770475995427,2.75179324,2018.8,2017.6,0.60056993]
[1770475995628,8.06766628,2018.9,2017.6,0.60056993]
[1770475996327,2.85873628,2018.8,2017.6,0.60056993]
[1770475997124,45.38991072,2018.7,2017.6,0.60056993]
[1770475997427,2.85873628,2019.0,2017.6,0.60056993]
[1770475997729,2.85873628,2019.2,2017.7,0.60045955]
[1770475998337,2.85873628,2019.1,2017.7,0.60045955]
[1770475998925,2.85873628,2019.0,2017.7,0.60045955]
[1770475999131,2.85873628,2018.8,2017.7,0.60045955]
[1770475999841,2.85873628,2018.9,2017.7,0.60045955]
[1770476000137,2.85873628,2018.8,2017.7,0.60045955]
[1770476001437,45.38991072,2018.8,2017.7,0.60045955]
[1770476002241,2.85873628,2018.7,2017.7,0.60045955]
[1770476003736,45.38991072,2018.8,2017.7,0.60045955]
[1770476004129,2.85873628,2018.8,2017.7,0.60045955]
[1770476004935,2.85873628,2018.8,2017.9,0.60297758]
[1770476005137,2.85873628,2018.9,2018.6,13.06320769]
[1770476005336,2.85873628,2019.0,2018.7,0.60297758]
[1770476005735,2.85873628,2019.2,2018.7,0.60297758]
[1770476006136,2.85873628,2019.2,2018.6,0.00631809]
[1770476006342,2.85873628,2019.1,2018.6,0.00631809]
[1770476007538,7.81973628,2019.1,2018.4,0.60837294]
[1770476007731,2.85873628,2019.1,2018.4,0.60837294]
[1770476008439,2.85873628,2019.1,2018.4,0.61199215]
[1770476008834,2.85873628,2018.8,2018.1,0.60740686]
[1770476009539,2.85873628,2018.6,2017.8,0.60740686]
[1770476009941,2.85873628,2018.6,2017.8,0.61175757]
[1770476012245,2.85873628,2018.5,2017.8,0.00435071]
[1770476013035,2.85873628,2018.3,2017.8,0.00435071]
[1770476013939,2.85873628,2018.3,2017.8,0.60975287]
[1770476014144,0.57020014,2018.8,2017.8,0.60975287]
[1770476014546,0.57020014,2018.7,2017.8,0.00435071]
[1770476014746,0.57020014,2018.7,2017.8,0.57495364]
[1770476015441,5.71747256,2018.9,2017.8,0.57495364]
[1770476015442,0.57020014,2018.9,2017.8,0.57495364]
[1770476015642,0.57020014,2018.9,2018.0,0.57060293]
[1770476018251,7.7817746,2019.1,2018.0,0.57060293]
[1770476018252,0.57368175,2019.0,2018.0,0.57060293]
[1770476019551,0.57368175,2019.0,2018.5,13.06320769]